[Event "Titled Tuesday Blitz October 04 Late 2022"]
[White "Sarana, Alexey"]
[Black "Nakamura, Hikaru"]
[WhiteFideId "24133795"]
[BlackFideId "2016192"]
[WhiteElo "2689"]
[BlackElo "2909"]
[Result "0-1"]
[Round "08"]
[TimeControl "180+1"]
[Date "2022.10.04"]
[WhiteClock "0:00:03"]
[BlackClock "0:00:15"]

1. e4 {[%clk 0:02:18]}  c6 {[%clk 0:02:57]} 2. d4 {[%clk 0:02:16]}  d5 {[%clk 0:02:57]} 3. Nc3 {[%clk 0:02:16]}  dxe4 {[%clk 0:02:56]} 4. Nxe4 {[%clk 0:02:17]}  Nf6 {[%clk 0:02:57]} 5. Nxf6+ {[%clk 0:02:15]}  gxf6 {[%clk 0:02:58]} 6. Nf3 {[%clk 0:02:15]}  Bf5 {[%clk 0:02:58]} 7. Bd3 {[%clk 0:02:14]}  Bg6 {[%clk 0:02:57]} 8. c3 {[%clk 0:02:14]}  e6 {[%clk 0:02:57]} 9. Bf4 {[%clk 0:02:14]}  Bd6 {[%clk 0:02:57]} 10. Bxd6 {[%clk 0:02:13]}  Qxd6 {[%clk 0:02:58]} 11. Qe2 {[%clk 0:02:13]}  Nd7 {[%clk 0:02:58]} 12. O-O-O {[%clk 0:02:13]}  Qf4+ {[%clk 0:02:55]} 13. Qe3 {[%clk 0:02:11]}  Qxe3+ {[%clk 0:02:55]} 14. fxe3 {[%clk 0:02:12]}  Bxd3 {[%clk 0:02:55]} 15. Rxd3 {[%clk 0:02:13]}  f5 {[%clk 0:02:54]} 16. g3 {[%clk 0:02:08]}  h5 {[%clk 0:02:52]} 17. c4 {[%clk 0:02:07]}  Nf6 {[%clk 0:02:52]} 18. b4 {[%clk 0:02:00]}  b5 {[%clk 0:02:46]} 19. Ne5 {[%clk 0:01:46]}  bxc4 {[%clk 0:02:44]} 20. Nxc4 {[%clk 0:01:45]}  Nd5 {[%clk 0:02:39]} 21. Rb3 {[%clk 0:01:38]}  h4 {[%clk 0:02:39]} 22. gxh4 {[%clk 0:01:33]}  Rxh4 {[%clk 0:02:39]} 23. h3 {[%clk 0:01:33]}  Rb8 {[%clk 0:02:15]} 24. a3 {[%clk 0:01:31]}  f6 {[%clk 0:02:14]} 25. Kd2 {[%clk 0:01:11]}  Kd7 {[%clk 0:02:13]} 26. Rg1 {[%clk 0:01:07]}  Rh7 {[%clk 0:02:02]} 27. Rg3 {[%clk 0:01:00]}  Rbh8 {[%clk 0:01:56]} 28. b5 {[%clk 0:00:54]}  f4 {[%clk 0:01:40]} 29. exf4 {[%clk 0:00:51]}  Nxf4 {[%clk 0:01:41]} 30. b6 {[%clk 0:00:43]}  axb6 {[%clk 0:01:33]} 31. Rxb6 {[%clk 0:00:44]}  Nd5 {[%clk 0:01:28]} 32. Rb7+ {[%clk 0:00:44]}  Kd8 {[%clk 0:01:28]} 33. Rb8+ {[%clk 0:00:31]}  Kc7 {[%clk 0:01:28]} 34. Rxh8 {[%clk 0:00:31]}  Rxh8 {[%clk 0:01:29]} 35. a4 {[%clk 0:00:29]}  Rh4 {[%clk 0:01:27]} 36. Rg7+ {[%clk 0:00:12]}  Kd8 {[%clk 0:01:27]} 37. Na5 {[%clk 0:00:10]}  Rxd4+ {[%clk 0:01:27]} 38. Ke2 {[%clk 0:00:10]}  Rxa4 {[%clk 0:01:26]} 39. Nxc6+ {[%clk 0:00:04]}  Ke8 {[%clk 0:01:27]} 40. Rh7 {[%clk 0:00:03]}  Rc4 {[%clk 0:01:23]} 41. Na5 {[%clk 0:00:03]}  Rc3 {[%clk 0:01:21]} 42. Nb7 {[%clk 0:00:03]}  Rxh3 {[%clk 0:01:14]} 43. Nd6+ {[%clk 0:00:03]}  Kf8 {[%clk 0:01:14]} 44. Rf7+ {[%clk 0:00:02]}  Kg8 {[%clk 0:01:15]} 45. Ra7 {[%clk 0:00:02]}  f5 {[%clk 0:01:08]} 46. Ra5 {[%clk 0:00:02]}  Rh5 {[%clk 0:00:58]} 47. Ra7 {[%clk 0:00:02]}  Rh7 {[%clk 0:00:53]} 48. Ra5 {[%clk 0:00:02]}  Rd7 {[%clk 0:00:52]} 49. Nc4 {[%clk 0:00:02]}  Kg7 {[%clk 0:00:52]} 50. Ra6 {[%clk 0:00:02]}  Kf6 {[%clk 0:00:53]} 51. Kf3 {[%clk 0:00:03]}  Rc7 {[%clk 0:00:52]} 52. Nd6 {[%clk 0:00:03]}  Rc3+ {[%clk 0:00:53]} 53. Ke2 {[%clk 0:00:04]}  Nf4+ {[%clk 0:00:52]} 54. Kf2 {[%clk 0:00:04]}  Rb3 {[%clk 0:00:53]} 55. Ra4 {[%clk 0:00:03]}  Ng6 {[%clk 0:00:46]} 56. Ne8+ {[%clk 0:00:03]}  Kg5 {[%clk 0:00:45]} 57. Nc7 {[%clk 0:00:02]}  Rb6 {[%clk 0:00:45]} 58. Na6 {[%clk 0:00:01]}  e5 {[%clk 0:00:44]} 59. Nc5 {[%clk 0:00:01]}  Rb2+ {[%clk 0:00:42]} 60. Ke3 {[%clk 0:00:01]}  Rc2 {[%clk 0:00:39]} 61. Ne6+ {[%clk 0:00:01]}  Kh6 {[%clk 0:00:28]} 62. Ra1 {[%clk 0:00:01]}  Rc3+ {[%clk 0:00:27]} 63. Kd2 {[%clk 0:00:01]}  Rh3 {[%clk 0:00:28]} 64. Ra8 {[%clk 0:00:01]}  f4 {[%clk 0:00:24]} 65. Re8 {[%clk 0:00:01]}  Kh5 {[%clk 0:00:22]} 66. Nc5 {[%clk 0:00:01]}  Kg4 {[%clk 0:00:22]} 67. Nd3 {[%clk 0:00:02]}  Rh2+ {[%clk 0:00:21]} 68. Ke1 {[%clk 0:00:01]}  Kf5 {[%clk 0:00:18]} 69. Nf2 {[%clk 0:00:02]}  Rh7 {[%clk 0:00:17]} 70. Rg8 {[%clk 0:00:01]}  e4 {[%clk 0:00:16]} 71. Ra8 {[%clk 0:00:01]}  Re7 {[%clk 0:00:16]} 72. Ra5+ {[%clk 0:00:01]}  Ne5 {[%clk 0:00:16]} 73. Ke2 {[%clk 0:00:01]}  Rb7 {[%clk 0:00:16]} 74. Ra4 {[%clk 0:00:01]}  Rb2+ {[%clk 0:00:16]} 75. Kf1 {[%clk 0:00:02]}  e3 {[%clk 0:00:16]} 76. Nh3 {[%clk 0:00:02]}  e2+ {[%clk 0:00:15]} 77. Kf2 {[%clk 0:00:02]}  Nd3+ {[%clk 0:00:16]} 78. Kf3 {[%clk 0:00:03]}  e1=N# {[%clk 0:00:15]} 0-1


[Site "https://www.chess.com"]

[Event "Titled Tuesday Blitz October 04 Late 2022"]
[White "miragha_yev"]
[Black "Jegorovas, Aleksandras"]
[BlackFideId "12801950"]
[WhiteElo "2788"]
[BlackElo "2247"]
[Result "1-0"]
[Round "08"]
[TimeControl "180+1"]
[Date "2022.10.04"]
[WhiteClock "0:01:51"]
[BlackClock "0:01:39"]

1. e4 {[%clk 0:02:53]}  e6 {[%clk 0:02:59]} 2. d4 {[%clk 0:02:51]}  d5 {[%clk 0:02:59]} 3. Nc3 {[%clk 0:02:49]}  Bb4 {[%clk 0:02:59]} 4. exd5 {[%clk 0:02:45]}  exd5 {[%clk 0:02:58]} 5. Bd3 {[%clk 0:02:46]}  Nc6 {[%clk 0:02:57]} 6. a3 {[%clk 0:02:44]}  Be7 {[%clk 0:02:56]} 7. Nge2 {[%clk 0:02:43]}  Nf6 {[%clk 0:02:56]} 8. O-O {[%clk 0:02:43]}  Bg4 {[%clk 0:02:54]} 9. h3 {[%clk 0:02:42]}  Bh5 {[%clk 0:02:54]} 10. Be3 {[%clk 0:02:42]}  Bg6 {[%clk 0:02:53]} 11. Qd2 {[%clk 0:02:41]}  O-O {[%clk 0:02:51]} 12. Rae1 {[%clk 0:02:40]}  Qd7 {[%clk 0:02:50]} 13. Nf4 {[%clk 0:02:39]}  Rfe8 {[%clk 0:02:45]} 14. Nxg6 {[%clk 0:02:37]}  hxg6 {[%clk 0:02:45]} 15. Ne2 {[%clk 0:02:30]}  Bd6 {[%clk 0:02:43]} 16. c3 {[%clk 0:02:25]}  a6 {[%clk 0:02:42]} 17. Bf4 {[%clk 0:02:21]}  Ne7 {[%clk 0:02:40]} 18. Be5 {[%clk 0:02:20]}  Nf5 {[%clk 0:02:36]} 19. Ng3 {[%clk 0:02:14]}  Nxg3 {[%clk 0:02:30]} 20. fxg3 {[%clk 0:02:15]}  c5 {[%clk 0:02:18]} 21. Bxf6 {[%clk 0:02:13]}  gxf6 {[%clk 0:02:18]} 22. Rxf6 {[%clk 0:02:12]}  Rxe1+ {[%clk 0:02:10]} 23. Qxe1 {[%clk 0:02:13]}  Re8 {[%clk 0:02:09]} 24. Qf2 {[%clk 0:02:10]}  Be7 {[%clk 0:01:49]} 25. Rxf7 {[%clk 0:02:06]}  cxd4 {[%clk 0:01:44]} 26. Bxg6 {[%clk 0:01:53]}  dxc3 {[%clk 0:01:40]} 27. Bh7+ {[%clk 0:01:52]}  Kh8 {[%clk 0:01:39]} 28. Qd4+ {[%clk 0:01:51]} 1-0


[Site "https://www.chess.com"]

[Event "Titled Tuesday Blitz October 04 Late 2022"]
[White "Bilych, Olexiy"]
[Black "Le, Tuan Minh"]
[WhiteFideId "14156504"]
[BlackFideId "12401153"]
[WhiteElo "2320"]
[BlackElo "2530"]
[Result "0-1"]
[Round "09"]
[TimeControl "180+1"]
[Date "2022.10.04"]
[WhiteClock "0:00:02"]
[BlackClock "0:00:45"]

1. e4 {[%clk 0:03:00]}  c5 {[%clk 0:02:35]} 2. Nf3 {[%clk 0:03:00]}  Nf6 {[%clk 0:02:34]} 3. e5 {[%clk 0:02:57]}  Nd5 {[%clk 0:02:34]} 4. Nc3 {[%clk 0:02:57]}  e6 {[%clk 0:02:34]} 5. Ne4 {[%clk 0:02:58]}  f5 {[%clk 0:02:33]} 6. Nc3 {[%clk 0:02:59]}  Ne7 {[%clk 0:02:31]} 7. b4 {[%clk 0:02:51]}  cxb4 {[%clk 0:02:31]} 8. Nb5 {[%clk 0:02:52]}  Ng6 {[%clk 0:02:31]} 9. a3 {[%clk 0:02:52]}  a6 {[%clk 0:02:29]} 10. axb4 {[%clk 0:02:50]}  Bxb4 {[%clk 0:02:28]} 11. Ba3 {[%clk 0:02:38]}  Bxa3 {[%clk 0:02:25]} 12. Rxa3 {[%clk 0:02:39]}  O-O {[%clk 0:02:21]} 13. h4 {[%clk 0:02:24]}  Nc6 {[%clk 0:02:11]} 14. d4 {[%clk 0:02:14]}  Nh8 {[%clk 0:01:59]} 15. c4 {[%clk 0:02:00]}  Nf7 {[%clk 0:01:56]} 16. c5 {[%clk 0:01:58]}  b6 {[%clk 0:01:56]} 17. Nd6 {[%clk 0:01:28]}  bxc5 {[%clk 0:01:51]} 18. Nxf7 {[%clk 0:01:28]}  Rxf7 {[%clk 0:01:51]} 19. dxc5 {[%clk 0:01:29]}  Qc7 {[%clk 0:01:44]} 20. Qa1 {[%clk 0:01:01]}  Nb4 {[%clk 0:01:38]} 21. Qc1 {[%clk 0:00:58]}  Bb7 {[%clk 0:01:36]} 22. Ng5 {[%clk 0:00:46]}  Rff8 {[%clk 0:01:32]} 23. f4 {[%clk 0:00:44]}  Rfc8 {[%clk 0:01:31]} 24. Rb3 {[%clk 0:00:26]}  a5 {[%clk 0:01:30]} 25. Rhh3 {[%clk 0:00:20]}  Bd5 {[%clk 0:01:26]} 26. Qd1 {[%clk 0:00:15]}  Bxb3 {[%clk 0:01:22]} 27. Qh5 {[%clk 0:00:15]}  Qxc5 {[%clk 0:00:55]} 28. Qxh7+ {[%clk 0:00:12]}  Kf8 {[%clk 0:00:56]} 29. Qh8+ {[%clk 0:00:06]}  Ke7 {[%clk 0:00:56]} 30. Qxg7+ {[%clk 0:00:06]}  Kd8 {[%clk 0:00:57]} 31. Nf7+ {[%clk 0:00:07]}  Kc7 {[%clk 0:00:57]} 32. Rxb3 {[%clk 0:00:07]}  Qc1+ {[%clk 0:00:56]} 33. Kf2 {[%clk 0:00:05]}  Qc2+ {[%clk 0:00:57]} 34. Be2 {[%clk 0:00:04]}  Qxb3 {[%clk 0:00:57]} 35. Ng5 {[%clk 0:00:04]}  a4 {[%clk 0:00:49]} 36. Bb5 {[%clk 0:00:02]}  Nc6 {[%clk 0:00:46]} 37. Bxc6 {[%clk 0:00:01]}  Kxc6 {[%clk 0:00:47]} 38. Nf7 {[%clk 0:00:01]}  Rg8 {[%clk 0:00:45]} 39. Qf6 {[%clk 0:00:02]}  Qb2+ {[%clk 0:00:45]} 40. Ke3 {[%clk 0:00:02]}  Rg3# {[%clk 0:00:45]} 0-1


[Site "https://www.chess.com"]

[Event "Titled Tuesday Blitz October 04 Late 2022"]
[White "Boros, Denes"]
[Black "Ibarra Jerez, Jose Carlos"]
[WhiteFideId "722340"]
[BlackFideId "2226332"]
[WhiteElo "2464"]
[BlackElo "2627"]
[Result "1-0"]
[Round "09"]
[TimeControl "180+1"]
[Date "2022.10.04"]
[WhiteClock "0:00:10"]
[BlackClock "0:00:01"]

1. Nf3 {[%clk 0:03:00]}  d6 {[%clk 0:02:58]} 2. c4 {[%clk 0:02:58]}  g6 {[%clk 0:02:56]} 3. g3 {[%clk 0:02:55]}  Bg7 {[%clk 0:02:56]} 4. Nc3 {[%clk 0:02:56]}  Nf6 {[%clk 0:02:54]} 5. d3 {[%clk 0:02:56]}  O-O {[%clk 0:02:53]} 6. Bd2 {[%clk 0:02:56]}  c6 {[%clk 0:02:42]} 7. Qc1 {[%clk 0:02:49]}  d5 {[%clk 0:02:41]} 8. Bh6 {[%clk 0:02:48]}  e5 {[%clk 0:02:30]} 9. Bxg7 {[%clk 0:02:44]}  Kxg7 {[%clk 0:02:31]} 10. Bg2 {[%clk 0:02:42]}  Re8 {[%clk 0:02:22]} 11. Nd2 {[%clk 0:02:34]}  Bf5 {[%clk 0:01:58]} 12. O-O {[%clk 0:02:28]}  e4 {[%clk 0:01:57]} 13. cxd5 {[%clk 0:01:54]}  cxd5 {[%clk 0:01:51]} 14. dxe4 {[%clk 0:01:48]}  dxe4 {[%clk 0:01:52]} 15. Nc4 {[%clk 0:01:45]}  Nc6 {[%clk 0:01:43]} 16. Rd1 {[%clk 0:01:43]}  Qe7 {[%clk 0:01:41]} 17. Nd6 {[%clk 0:01:43]}  Qe6 {[%clk 0:00:58]} 18. Nxe8+ {[%clk 0:01:30]}  Rxe8 {[%clk 0:00:58]} 19. Qf4 {[%clk 0:01:25]}  Ne5 {[%clk 0:00:46]} 20. Nb5 {[%clk 0:01:21]}  Nh5 {[%clk 0:00:42]} 21. Qe3 {[%clk 0:01:14]}  Qe7 {[%clk 0:00:26]} 22. Nd6 {[%clk 0:01:02]}  Rg8 {[%clk 0:00:25]} 23. Bxe4 {[%clk 0:00:53]}  Bxe4 {[%clk 0:00:20]} 24. Qxe4 {[%clk 0:00:53]}  Nf6 {[%clk 0:00:20]} 25. Qxb7 {[%clk 0:00:48]}  Qe6 {[%clk 0:00:19]} 26. Ne4 {[%clk 0:00:41]}  Nh5 {[%clk 0:00:14]} 27. Qd5 {[%clk 0:00:35]}  Qf5 {[%clk 0:00:09]} 28. f4 {[%clk 0:00:33]}  Nxf4 {[%clk 0:00:09]} 29. gxf4 {[%clk 0:00:31]}  Qxf4 {[%clk 0:00:09]} 30. Qd4 {[%clk 0:00:27]}  f6 {[%clk 0:00:06]} 31. Ng3 {[%clk 0:00:20]}  Qg5 {[%clk 0:00:04]} 32. Kh1 {[%clk 0:00:17]}  Rf8 {[%clk 0:00:04]} 33. Rac1 {[%clk 0:00:17]}  Ng4 {[%clk 0:00:04]} 34. Rc7+ {[%clk 0:00:09]}  Kh6 {[%clk 0:00:05]} 35. Qd2 {[%clk 0:00:08]}  Nf2+ {[%clk 0:00:05]} 36. Kg2 {[%clk 0:00:08]}  Nxd1 {[%clk 0:00:06]} 37. Qxd1 {[%clk 0:00:08]}  Re8 {[%clk 0:00:06]} 38. e4 {[%clk 0:00:06]}  Rxe4 {[%clk 0:00:06]} 39. Qd7 {[%clk 0:00:06]}  Re2+ {[%clk 0:00:04]} 40. Kf1 {[%clk 0:00:06]}  Qe3 {[%clk 0:00:02]} 41. Qxh7+ {[%clk 0:00:05]}  Kg5 {[%clk 0:00:02]} 42. Rc5+ {[%clk 0:00:05]}  f5 {[%clk 0:00:03]} 43. Rxf5+ {[%clk 0:00:04]}  gxf5 {[%clk 0:00:03]} 44. Qxf5+ {[%clk 0:00:03]}  Kh6 {[%clk 0:00:04]} 45. Qf6+ {[%clk 0:00:03]}  Kh7 {[%clk 0:00:03]} 46. Nxe2 {[%clk 0:00:04]}  Qd3 {[%clk 0:00:02]} 47. Qh4+ {[%clk 0:00:02]}  Kg8 {[%clk 0:00:02]} 48. Qd4 {[%clk 0:00:03]}  Qb1+ {[%clk 0:00:02]} 49. Kf2 {[%clk 0:00:04]}  Qxa2 {[%clk 0:00:03]} 50. Qc3 {[%clk 0:00:04]}  a5 {[%clk 0:00:03]} 51. Qg3+ {[%clk 0:00:05]}  Kh8 {[%clk 0:00:03]} 52. Qe5+ {[%clk 0:00:06]}  Kh7 {[%clk 0:00:04]} 53. h4 {[%clk 0:00:06]}  a4 {[%clk 0:00:04]} 54. Qf5+ {[%clk 0:00:06]}  Kh8 {[%clk 0:00:04]} 55. Qe5+ {[%clk 0:00:07]}  Kh7 {[%clk 0:00:04]} 56. h5 {[%clk 0:00:08]}  a3 {[%clk 0:00:04]} 57. bxa3 {[%clk 0:00:09]}  Qxa3 {[%clk 0:00:02]} 58. Nf4 {[%clk 0:00:10]}  Qa2+ {[%clk 0:00:02]} 59. Kf3 {[%clk 0:00:10]}  Qb3+ {[%clk 0:00:02]} 60. Kg4 {[%clk 0:00:11]}  Qg8+ {[%clk 0:00:02]} 61. Qg5 {[%clk 0:00:10]}  Qc8+ {[%clk 0:00:02]} 62. Qf5+ {[%clk 0:00:10]}  Kg7 {[%clk 0:00:01]} 63. Qxc8 {[%clk 0:00:10]} 1-0


[Site "https://www.chess.com"]

[Event "Titled Tuesday Blitz October 04 Late 2022"]
[White "Bortnyk, Olexandr"]
[Black "Nepomniachtchi, Ian"]
[WhiteFideId "14120828"]
[BlackFideId "4168119"]
[WhiteElo "2723"]
[BlackElo "2781"]
[Result "1-0"]
[Round "09"]
[TimeControl "180+1"]
[Date "2022.10.04"]
[WhiteClock "0:00:10"]
[BlackClock "0:00:04"]

1. d4 {[%clk 0:03:00]}  Nf6 {[%clk 0:02:59]} 2. Nc3 {[%clk 0:03:01]}  d5 {[%clk 0:02:58]} 3. Bf4 {[%clk 0:03:02]}  a6 {[%clk 0:02:55]} 4. e3 {[%clk 0:03:02]}  e6 {[%clk 0:02:55]} 5. Nf3 {[%clk 0:03:02]}  c5 {[%clk 0:02:55]} 6. a3 {[%clk 0:03:03]}  Nc6 {[%clk 0:02:55]} 7. h3 {[%clk 0:03:03]}  Bd6 {[%clk 0:02:54]} 8. dxc5 {[%clk 0:03:03]}  Bxc5 {[%clk 0:02:54]} 9. Bd3 {[%clk 0:03:04]}  Bd6 {[%clk 0:02:50]} 10. Bxd6 {[%clk 0:03:02]}  Qxd6 {[%clk 0:02:49]} 11. O-O {[%clk 0:03:00]}  O-O {[%clk 0:02:49]} 12. e4 {[%clk 0:03:01]}  d4 {[%clk 0:02:47]} 13. Ne2 {[%clk 0:03:01]}  e5 {[%clk 0:02:47]} 14. Ng3 {[%clk 0:03:01]}  Be6 {[%clk 0:02:44]} 15. Qd2 {[%clk 0:03:01]}  h6 {[%clk 0:02:44]} 16. Nh4 {[%clk 0:03:00]}  Ne7 {[%clk 0:02:39]} 17. f4 {[%clk 0:02:59]}  exf4 {[%clk 0:02:32]} 18. Rxf4 {[%clk 0:03:00]}  Nd7 {[%clk 0:02:28]} 19. Raf1 {[%clk 0:02:41]}  Ne5 {[%clk 0:02:27]} 20. Nh5 {[%clk 0:02:31]}  Rac8 {[%clk 0:02:17]} 21. Rf6 {[%clk 0:02:14]}  N5g6 {[%clk 0:02:04]} 22. Nf5 {[%clk 0:02:12]}  Nxf5 {[%clk 0:01:41]} 23. exf5 {[%clk 0:02:10]}  Qe5 {[%clk 0:01:30]} 24. Re1 {[%clk 0:01:33]}  Qd5 {[%clk 0:00:40]} 25. fxe6 {[%clk 0:01:23]}  Nh4 {[%clk 0:00:26]} 26. exf7+ {[%clk 0:00:34]}  Rxf7 {[%clk 0:00:26]} 27. Rxf7 {[%clk 0:00:35]}  Qxf7 {[%clk 0:00:26]} 28. Ng3 {[%clk 0:00:31]}  Rc5 {[%clk 0:00:26]} 29. Qf2 {[%clk 0:00:28]}  Qd7 {[%clk 0:00:17]} 30. Qf4 {[%clk 0:00:25]}  Qd8 {[%clk 0:00:11]} 31. Qe4 {[%clk 0:00:19]}  g6 {[%clk 0:00:04]} 32. Qe8+ {[%clk 0:00:15]}  Qxe8 {[%clk 0:00:04]} 33. Rxe8+ {[%clk 0:00:15]}  Kf7 {[%clk 0:00:05]} 34. Re4 {[%clk 0:00:16]}  g5 {[%clk 0:00:05]} 35. Rxd4 {[%clk 0:00:16]}  Ke6 {[%clk 0:00:05]} 36. Kf2 {[%clk 0:00:15]}  Rc7 {[%clk 0:00:04]} 37. Re4+ {[%clk 0:00:15]}  Kd5 {[%clk 0:00:04]} 38. Re8 {[%clk 0:00:11]}  Rf7+ {[%clk 0:00:05]} 39. Kg1 {[%clk 0:00:12]}  Kd6 {[%clk 0:00:04]} 40. Rh8 {[%clk 0:00:10]} 1-0


[Site "https://www.chess.com"]

[Event "Titled Tuesday Blitz October 04 Late 2022"]
[White "Duda, Jan-Krzysztof"]
[Black "Svane, Rasmus"]
[WhiteFideId "1170546"]
[BlackFideId "4657101"]
[WhiteElo "2779"]
[BlackElo "2674"]
[Result "1-0"]
[Round "09"]
[TimeControl "180+1"]
[Date "2022.10.04"]
[WhiteClock "0:02:19"]
[BlackClock "0:01:31"]

1. e4 {[%clk 0:03:00]}  c6 {[%clk 0:02:57]} 2. Nc3 {[%clk 0:02:57]}  d5 {[%clk 0:02:58]} 3. d3 {[%clk 0:02:57]}  dxe4 {[%clk 0:02:51]} 4. dxe4 {[%clk 0:02:57]}  Qxd1+ {[%clk 0:02:52]} 5. Nxd1 {[%clk 0:02:57]}  e5 {[%clk 0:02:52]} 6. Bc4 {[%clk 0:02:55]}  Bc5 {[%clk 0:02:52]} 7. Nf3 {[%clk 0:02:45]}  f6 {[%clk 0:02:50]} 8. a4 {[%clk 0:02:43]}  a5 {[%clk 0:02:48]} 9. Nd2 {[%clk 0:02:40]}  Na6 {[%clk 0:02:44]} 10. Nb3 {[%clk 0:02:39]}  Bb6 {[%clk 0:02:44]} 11. Be3 {[%clk 0:02:37]}  Bxe3 {[%clk 0:02:43]} 12. Nxe3 {[%clk 0:02:38]}  Nc7 {[%clk 0:02:42]} 13. O-O-O {[%clk 0:02:36]}  Nh6 {[%clk 0:02:34]} 14. Rd2 {[%clk 0:02:33]}  b5 {[%clk 0:02:03]} 15. axb5 {[%clk 0:02:30]}  Nxb5 {[%clk 0:01:45]} 16. Rhd1 {[%clk 0:02:29]}  Ke7 {[%clk 0:01:38]} 17. Nc5 {[%clk 0:02:21]}  Ng4 {[%clk 0:01:31]} 18. Rd7+ {[%clk 0:02:19]} 1-0


[Site "https://www.chess.com"]

[Event "Titled Tuesday Blitz October 04 Late 2022"]
[White "Hambleton, Aman"]
[Black "Brodowski, Piotr"]
[WhiteFideId "2606577"]
[BlackFideId "1124480"]
[WhiteElo "2538"]
[BlackElo "2361"]
[Result "1-0"]
[Round "09"]
[TimeControl "180+1"]
[Date "2022.10.04"]
[WhiteClock "0:00:02"]
[BlackClock "0:00:02"]

1. d4 {[%clk 0:03:00]}  d6 {[%clk 0:03:00]} 2. e4 {[%clk 0:02:58]}  g6 {[%clk 0:02:58]} 3. c4 {[%clk 0:02:58]}  Bg7 {[%clk 0:02:58]} 4. Nc3 {[%clk 0:02:59]}  Nc6 {[%clk 0:02:57]} 5. Nge2 {[%clk 0:02:59]}  e5 {[%clk 0:02:55]} 6. Be3 {[%clk 0:02:59]}  exd4 {[%clk 0:02:51]} 7. Nxd4 {[%clk 0:03:00]}  Nge7 {[%clk 0:02:51]} 8. Be2 {[%clk 0:03:00]}  O-O {[%clk 0:02:51]} 9. O-O {[%clk 0:03:01]}  f5 {[%clk 0:02:51]} 10. Nxc6 {[%clk 0:03:01]}  Nxc6 {[%clk 0:02:50]} 11. exf5 {[%clk 0:03:00]}  Bxf5 {[%clk 0:02:50]} 12. Qd2 {[%clk 0:03:00]}  Qd7 {[%clk 0:02:50]} 13. Rfe1 {[%clk 0:02:58]}  Rae8 {[%clk 0:02:49]} 14. Rac1 {[%clk 0:02:50]}  Kh8 {[%clk 0:02:10]} 15. Nd5 {[%clk 0:02:32]}  Ne5 {[%clk 0:02:04]} 16. f4 {[%clk 0:02:09]}  Nc6 {[%clk 0:01:54]} 17. Bf2 {[%clk 0:01:52]}  Be4 {[%clk 0:01:52]} 18. b4 {[%clk 0:01:35]}  Ne7 {[%clk 0:01:29]} 19. Nc3 {[%clk 0:01:17]}  Nf5 {[%clk 0:01:14]} 20. Bf1 {[%clk 0:00:38]}  Bxc3 {[%clk 0:01:03]} 21. Qxc3+ {[%clk 0:00:35]}  Qg7 {[%clk 0:01:03]} 22. Qd2 {[%clk 0:00:14]}  h5 {[%clk 0:00:57]} 23. c5 {[%clk 0:00:11]}  d5 {[%clk 0:00:52]} 24. c6 {[%clk 0:00:12]}  b6 {[%clk 0:00:47]} 25. a4 {[%clk 0:00:04]}  Re6 {[%clk 0:00:24]} 26. a5 {[%clk 0:00:04]}  Rfe8 {[%clk 0:00:24]} 27. axb6 {[%clk 0:00:04]}  axb6 {[%clk 0:00:25]} 28. Ra1 {[%clk 0:00:04]}  d4 {[%clk 0:00:25]} 29. Ra7 {[%clk 0:00:03]}  Bxc6 {[%clk 0:00:24]} 30. Rxe6 {[%clk 0:00:02]}  Rxe6 {[%clk 0:00:25]} 31. h3 {[%clk 0:00:02]}  Rd6 {[%clk 0:00:15]} 32. Bd3 {[%clk 0:00:02]}  Kh7 {[%clk 0:00:03]} 33. Qc1 {[%clk 0:00:02]}  Qd7 {[%clk 0:00:02]} 34. b5 {[%clk 0:00:02]} 1-0


[Site "https://www.chess.com"]